Workbook

Sheet Leisure Centre
A1: Leisure Centre 122
B2: 9am | C2: 10am | D2: 11am | E2: 12am | F2: 1pm | G2: 2pm | H2: 3pm | I2: 4pm | J2: 5pm | K2: Capacity
A3: Mon 15th | C3: 109 | D3: 114 | E3: 100 | F3: 82 | G3: 80 | H3: 72 | K3: 122
A4: Tue 16th | C4: 120 | D4: 101 | E4: 99 | F4: 105 | G4: 89 | H4: 94 | K4: 122
A5: Wed 17th | C5: 110 | D5: 113 | E5: 119 | F5: 109 | G5: 108 | H5: 102 | K5: 122
A6: Thurs 18th | C6: 103 | D6: 112 | E6: 91 | F6: 82 | G6: 76 | H6: 74 | K6: 122
A7: Fri 19th | C7: 117 | D7: 122 | E7: 112 | F7: 96 | G7: 85 | H7: 87 | K7: 122
A8: Sat 20th | C8: 94 | D8: 90 | E8: 93 | F8: 96 | G8: 85 | H8: 84 | K8: 122

Sheet Old station
A1: Old station 149
B2: 9am | C2: 10am | D2: 11am | E2: 12am | F2: 1pm | G2: 2pm | H2: 3pm | I2: 4pm | J2: 5pm | K2: Capacity
A3: Mon 15th | C3: 149 | D3: 149 | E3: 149 | F3: 149 | G3: 149 | H3: 149 | K3: 149
A4: Tue 16th | C4: 149 | D4: 149 | E4: 149 | F4: 149 | G4: 146 | H4: 149 | K4: 149
A5: Wed 17th | C5: 149 | D5: 149 | E5: 149 | F5: 149 | G5: 149 | H5: 149 | K5: 149
A6: Thurs 18th | C6: 149 | D6: 149 | E6: 149 | F6: 149 | G6: 149 | H6: 147 | K6: 149
A7: Fri 19th | C7: 149 | D7: 149 | E7: 149 | F7: 149 | G7: 149 | H7: 144 | K7: 149
A8: Sat 20th | C8: 70 | D8: 109 | E8: 138 | F8: 148 | G8: 142 | H8: 126 | K8: 149

Sheet Sheep St
A1: 77
B2: 9am | C2: 10am | D2: 11am | E2: 12am | F2: 1pm | G2: 2pm | H2: 3pm | I2: 4pm | J2: 5pm | K2: Capacity
A3: Mon 15th | C3: 77 | D3: 77 | E3: 77 | F3: 77 | G3: 77 | H3: 74 | K3: 77
A4: Tue 16th | C4: 77 | D4: 75 | E4: 77 | F4: 77 | G4: 76 | H4: 77 | K4: 77
A5: Wed 17th | C5: 77 | D5: 77 | E5: 77 | F5: 77 | G5: 77 | H5: 77 | K5: 77
A6: Thurs 18th | C6: 77 | D6: 77 | E6: 77 | F6: 77 | G6: 77 | H6: 76 | K6: 77
A7: Fri 19th | C7: 77 | D7: 77 | E7: 77 | F7: 77 | G7: 77 | H7: 75 | K7: 77
A8: Sat 20th | C8: 54 | D8: 68 | E8: 67 | F8: 61 | G8: 45 | H8: 36 | K8: 77

Sheet Brewery
A1: Brewery 298
B2: 9am | C2: 10am | D2: 11am | E2: 12am | F2: 1pm | G2: 2pm | H2: 3pm | I2: 4pm | J2: 5pm | K2: Capacity
A3: Mon 15th | C3: 177 | D3: 264 | E3: 292 | F3: 255 | G3: 270 | H3: 295 | K3: 298
A4: Tue 16th | C4: 180 | D4: 286 | E4: 295 | F4: 298 | G4: 298 | H4: 293 | K4: 298
A5: Wed 17th | C5: 186 | D5: 262 | E5: 255 | F5: 272 | G5: 286 | H5: 276 | K5: 298
A6: Thurs 18th | C6: 148 | D6: 240 | E6: 263 | F6: 293 | G6: 288 | H6: 268 | K6: 298
A7: Fri 19th | C7: 245 | D7: 298 | E7: 298 | F7: 298 | G7: 298 | H7: 296 | K7: 298
A8: Sat 20th | C8: 200 | D8: 238 | E8: 298 | F8: 284 | G8: 294 | H8: 298 | K8: 298

Sheet Forum
A1: Forum 191 | B1: 9am | C1: 10am | D1: 11am | E1: 12am | F1: 1pm | G1: 2pm | H1: 3pm | I1: 4pm | J1: 5pm | K1: Capacity
A2: Mon 15th | C2: 100 | D2: 179 | E2: 189 | F2: 188 | G2: 191 | H2: 185 | K2: 191
A3: Tue 16th | C3: 110 | D3: 191 | E3: 191 | F3: 191 | G3: 184 | H3: 189 | K3: 191
A4: Wed 17th | C4: 96 | D4: 155 | E4: 189 | F4: 189 | G4: 177 | H4: 176 | K4: 191
A5: Thurs 18th | C5: 96 | D5: 181 | E5: 191 | F5: 191 | G5: 188 | H5: 191 | K5: 191
A6: Fri 19th | C6: 180 | D6: 191 | E6: 191 | F6: 191 | G6: 190 | H6: 191 | K6: 191
A7: Sat 20th | C7: 159 | D7: 191 | E7: 191 | F7: 191 | G7: 191 | H7: 191 | K7: 191

Sheet Beeches
A1: 145
B2: 9am | C2: 10am | D2: 11am | E2: 12am | F2: 1pm | G2: 2pm | H2: 3pm | I2: 4pm | J2: 5pm | K2: Capacity
A3: Mon 15th | C3: 122 | D3: 125 | E3: 125 | F3: 136 | G3: 126 | H3: 112 | K3: 145
A4: Tue 16th | C4: 144 | D4: 145 | E4: 143 | F4: 142 | G4: 138 | H4: 125 | K4: 145
A5: Wed 17th | C5: 133 | D5: 136 | E5: 137 | F5: 131 | G5: 124 | H5: 129 | K5: 145
A6: Thurs 18th | C6: 145 | D6: 145 | E6: 145 | F6: 141 | G6: 139 | H6: 133 | K6: 145
A7: Fri 19th | C7: 145 | D7: 145 | E7: 145 | F7: 145 | G7: 144 | H7: 126 | K7: 145
A8: Sat 20th | C8: 112 | D8: 119 | E8: 129 | F8: 125 | G8: 111 | H8: 104 | K8: 145

Sheet waterloo
A1: 233
B2: 9am | C2: 10am | D2: 11am | E2: 12am | F2: 1pm | G2: 2pm | H2: 3pm | I2: 4pm | J2: 5pm | K2: Capacity
A3: Mon 15th | C3: 184 | D3: 212 | E3: 233 | F3: 225 | G3: 209 | H3: 179 | K3: 233
A4: Tue 16th | C4: 203 | D4: 233 | E4: 233 | F4: 231 | G4: 221 | H4: 180 | K4: 233
A5: Wed 17th | C5: 185 | D5: 207 | E5: 211 | F5: 214 | G5: 198 | H5: 171 | K5: 233
A6: Thurs 18th | C6: 180 | D6: 215 | E6: 232 | F6: 231 | G6: 219 | H6: 183 | K6: 233
A7: Fri 19th | C7: 204 | D7: 233 | E7: 233 | F7: 233 | G7: 233 | H7: 215 | K7: 233
A8: Sat 20th | C8: 158 | D8: 205 | E8: 217 | F8: 216 | G8: 166 | H8: 147 | K8: 233

Sheet Abbey
A1: 97
B2: 9am | C2: 10am | D2: 11am | E2: 12am | F2: 1pm | G2: 2pm | H2: 3pm | I2: 4pm | J2: 5pm | K2: Capacity
A3: Mon 15th | C3: 85 | D3: 90 | E3: 93 | F3: 95 | G3: 91 | H3: 83 | K3: 97
A4: Tue 16th | C4: 97 | D4: 97 | E4: 97 | F4: 97 | G4: 93 | H4: 78 | K4: 97
A5: Wed 17th | C5: 97 | D5: 97 | E5: 97 | F5: 91 | G5: 85 | H5: 77 | K5: 97
A6: Thurs 18th | C6: 87 | D6: 97 | E6: 97 | F6: 91 | G6: 94 | H6: 81 | K6: 97
A7: Fri 19th | C7: 97 | D7: 97 | E7: 97 | F7: 97 | G7: 89 | H7: 76 | K7: 97
A8: Sat 20th | C8: 58 | D8: 69 | E8: 67 | F8: 70 | G8: 61 | H8: 55 | K8: 97

Sheet Overview
A1: Mon
A2: 2016-02-15 | B2: 10am | C2: 11am | D2: 12am | E2: 1pm | F2: 2pm | G2: 3pm
A3: Leisure Centre 122 | B3: 13 | C3: 8 | D3: 22 | E3: 40 | F3: 42 | G3: 50 | H3: 5 or less spaces
A4: Old Station 149 | B4: 0 | C4: 0 | D4: 0 | E4: 0 | F4: 0 | G4: 0
A5: Sheep Street 77 | B5: 0 | C5: 0 | D5: 0 | E5: 0 | F5: 0 | G5: 3
A6: Brewery 298 | B6: 120 | C6: 34 | D6: 6 | E6: 43 | F6: 28 | G6: 3
A7: Forum 191 | B7: 91 | C7: 12 | D7: 2 | E7: 3 | F7: 0 | G7: 6
A8: Beeches 145 | B8: 23 | C8: 20 | D8: 20 | E8: 9 | F8: 19 | G8: 33
A9: Waterloo 233 | B9: 49 | C9: 21 | D9: 0 | E9: 8 | F9: 24 | G9: 54
A10: Abbey 97 | B10: 12 | C10: 7 | D10: 4 | E10: 2 | F10: 6 | G10: 14
A11: 1312 | B11: =SUM(B3:B10) -> 308 | C11: =SUM(C3:C10) -> 102 | D11: 54 | E11: 105 | F11: 119 | G11: 163
A12: Long stay 701 | B12: =B4+B5+B8+B9+B10 -> 84 | C12: =C4+C5+C8+C9+C10 -> 48 | D12: 24 | E12: 19 | F12: 49 | G12: 104 | H12: 5% or less
B13: =B12/701 -> 0.119828816 | C13: 0.06847360913 | D13: 0.03423680456 | E13: 0.02710413695 | F13: 0.06990014265 | G13: 0.1483594864
A14: Short stay 611 | B14: =B3+B6+B7 -> 224 | C14: =C3+C6+C7 -> 54 | D14: 30 | E14: 86 | F14: 70 | G14: 59
B15: =B14/611 -> 0.3666121113 | C15: 0.0883797054 | D15: 0.04909983633 | E15: 0.1407528642 | F15: 0.1145662848 | G15: 0.09656301146
A17: Tue 16/02/2016 | B17: 10am | C17: 11am | D17: 12am | E17: 1pm | F17: 2pm | G17: 3pm
A18: Leisure Centre 122 | B18: 2 | C18: 21 | D18: 23 | E18: 17 | F18: 33 | G18: 28
A19: Old Station 149 | B19: 0 | C19: 0 | D19: 0 | E19: 0 | F19: 3 | G19: 0
A20: Sheep Street 77 | B20: 7 | C20: 2 | D20: 0 | E20: 0 | F20: 1 | G20: 0
A21: Brewery 298 | B21: 118 | C21: 12 | D21: 3 | E21: 0 | F21: 0 | G21: 5
A22: Forum 191 | B22: 81 | C22: 0 | D22: 0 | E22: 0 | F22: 7 | G22: 2
A23: Beeches 145 | B23: 1 | C23: 0 | D23: 2 | E23: 3 | F23: 7 | G23: 20
A24: Waterloo 233 | B24: 30 | C24: 0 | D24: 0 | E24: 2 | F24: 12 | G24: 53
A25: Abbey 97 | B25: 0 | C25: 0 | D25: 0 | E25: 0 | F25: 4 | G25: 19
B26: =SUM(B18:B25) -> 239 | C26: 35 | D26: 28 | E26: 22 | F26: 67 | G26: 127
A27: Long stay 701 | B27: =B19+B20+B23+B24+B25 -> 38 | C27: =C19+C20+C23+C24+C25 -> 2 | D27: 2 | E27: 5 | F27: 27 | G27: 92
A28: 701 | B28: =B27/701 -> 0.05420827389 | C28: =C27/$A$28 -> 0.002853067047 | D28: 0.002853067047 | E28: 0.007132667618 | F28: 0.03851640514 | G28: 0.1312410842
A29: Short stay 611 | B29: =SUM(B18+B21+B22) -> 201 | C29: =SUM(C18+C21+C22) -> 33 | D29: 26 | E29: 17 | F29: 40 | G29: 35
B30: =B29/613 -> 0.3278955954 | C30: 0.05383360522 | D30: 0.04241435563 | E30: 0.0277324633 | F30: 0.06525285481 | G30: 0.05709624796
A32: Wed 17/02/2016 | B32: 10am | C32: 11am | D32: 12am | E32: 1pm | F32: 2pm | G32: 3pm
A33: Leisure Centre 122 | B33: 12 | C33: 9 | D33: 3 | E33: 13 | F33: 14 | G33: 20
A34: Old Station 149 | B34: 0 | C34: 0 | D34: 0 | E34: 0 | F34: 0 | G34: 0
A35: Sheep Street 77 | B35: 0 | C35: 0 | D35: 0 | E35: 0 | F35: 0 | G35: 0
A36: Brewery 298 | B36: 112 | C36: 36 | D36: 43 | E36: 26 | F36: 12 | G36: 22
A37: Forum 191 | B37: 95 | C37: 36 | D37: 2 | E37: 2 | F37: 14 | G37: 15
A38: Beeches 145 | B38: 12 | C38: 9 | D38: 8 | E38: 14 | F38: 21 | G38: 16
A39: Waterloo 233 | B39: 48 | C39: 26 | D39: 22 | E39: 19 | F39: 35 | G39: 62
A40: Abbey 97 | B40: 0 | C40: 0 | D40: 0 | E40: 6 | F40: 12 | G40: 20
B41: =SUM(B33:B40) -> 279 | C41: 116 | D41: 78 | E41: 80 | F41: 108 | G41: 155
A42: Long stay 701 | B42: =B34+B35+B38+B39+B40 -> 60 | C42: =C34+C35+C38+C39+C40 -> 35 | D42: 30 | E42: 39 | F42: 68 | G42: 98
A43: 701 | B43: =B42/701 -> 0.08559201141 | C43: =C42/701 -> 0.04992867332 | D43: 0.04279600571 | E43: 0.05563480742 | F43: 0.0970042796 | G43: 0.1398002853
A44: Short stay 611 | B44: =SUM(B33+B36+B37) -> 219 | C44: =SUM(C33+C36+C37) -> 81 | D44: 48 | E44: 41 | F44: 40 | G44: 57
B45: =B44/611 -> 0.3584288052 | C45: =C44/611 -> 0.1325695581 | D45: 0.07855973813 | E45: 0.06710310966 | F45: 0.06546644845 | G45: 0.09328968903
A47: Thur 18/02/2016 | B47: 10am | C47: 11am | D47: 12am | E47: 1pm | F47: 2pm | G47: 3pm
A48: Leisure Centre 122 | B48: 19 | C48: 10 | D48: 31 | E48: 40 | F48: 46 | G48: 48
A49: Old Station 149 | B49: 0 | C49: 0 | D49: 0 | E49: 0 | F49: 0 | G49: 2
A50: Sheep Street 77 | B50: 0 | C50: 0 | D50: 0 | E50: 0 | F50: 0 | G50: 1
A51: Brewery 298 | B51: 150 | C51: 58 | D51: 35 | E51: 5 | F51: 10 | G51: 30
A52: Forum 191 | B52: 95 | C52: 10 | D52: 0 | E52: 0 | F52: 3 | G52: 0
A53: Beeches 145 | B53: 0 | C53: 0 | D53: 0 | E53: 4 | F53: 6 | G53: 12
A54: Waterloo 233 | B54: 53 | C54: 18 | D54: 1 | E54: 2 | F54: 14 | G54: 50
A55: Abbey 97 | B55: 10 | C55: 0 | D55: 0 | E55: 6 | F55: 3 | G55: 16
B56: =SUM(B48:B55) -> 327 | C56: 96 | D56: 67 | E56: 57 | F56: 82 | G56: 159
A57: Long stay 701 | B57: =B49+B50+B53+B54+B55 -> 63 | C57: 18 | D57: 1 | E57: 12 | F57: 23 | G57: 81
A58: 701 | B58: =B57/701 -> 0.08987161198 | C58: =C57/701 -> 0.02567760342 | D58: 0.001426533524 | E58: 0.01711840228 | F58: 0.03281027104 | G58: 0.1155492154
A59: Short stay 611 | B59: =SUM(B48+B51+B52) -> 264 | C59: 78 | D59: 66 | E59: 45 | F59: 59 | G59: 78
A60: 611 | B60: =B59/611 -> 0.4320785597 | C60: =C59/611 -> 0.1276595745 | D60: 0.1080196399 | E60: 0.0736497545 | F60: 0.09656301146 | G60: 0.1276595745
A62: Fri 19/02/2016 | B62: 10am | C62: 11am | D62: 12am | E62: 1pm | F62: 2pm | G62: 3pm
A63: Leisure Centre 122 | B63: 5 | C63: 0 | D63: 10 | E63: 26 | F63: 37 | G63: 35
A64: Old Station 149 | B64: 0 | C64: 0 | D64: 0 | E64: 0 | F64: 0 | G64: 5
A65: Sheep Street 77 | B65: 0 | C65: 0 | D65: 0 | E65: 0 | F65: 0 | G65: 2
A66: Brewery 298 | B66: 53 | C66: 0 | D66: 0 | E66: 0 | F66: 0 | G66: 2
A67: Forum 191 | B67: 11 | C67: 0 | D67: 0 | E67: 0 | F67: 1 | G67: 0
A68: Beeches 145 | B68: 0 | C68: 0 | D68: 0 | E68: 0 | F68: 1 | G68: 19
A69: Waterloo 233 | B69: 29 | C69: 0 | D69: 0 | E69: 0 | F69: 0 | G69: 18
A70: Abbey 97 | B70: 0 | C70: 0 | D70: 0 | E70: 0 | F70: 8 | G70: 21
B71: =SUM(B63:B70) -> 98 | C71: 0 | D71: 10 | E71: 26 | F71: 47 | G71: 102
A72: Long stay 701 | B72: =B64+B65+B68+B69+B70 -> 29 | C72: 0 | D72: 0 | E72: 0 | F72: 9 | G72: 65
A73: 701 | B73: =B72/701 -> 0.04136947218 | C73: =C72/701 -> 0 | D73: 0 | E73: 0 | F73: 0.01283880171 | G73: 0.09272467903
A74: Short stay 611 | B74: =SUM(B63+B66+B67) -> 69 | C74: 0 | D74: 10 | E74: 26 | F74: 38 | G74: 37
A75: 611 | B75: =B74/611 -> 0.1129296236 | C75: =C74/611 -> 0 | D75: 0.01636661211 | E75: 0.04255319149 | F75: 0.06219312602 | G75: 0.06055646481
A77: Sat 20/02/2016 | B77: 10am | C77: 11am | D77: 12am | E77: 1pm | F77: 2pm | G77: 3pm
A78: Leisure Centre 122 | B78: 28 | C78: 32 | D78: 29 | E78: 26 | F78: 37 | G78: 38
A79: Old Station 149 | B79: 75 | C79: 40 | D79: 11 | E79: 1 | F79: 7 | G79: 23
A80: Sheep Street 77 | B80: 23 | C80: 9 | D80: 10 | E80: 16 | F80: 32 | G80: 41
A81: Brewery 298 | B81: 98 | C81: 60 | D81: 0 | E81: 14 | F81: 4 | G81: 0
A82: Forum 191 | B82: 32 | C82: 0 | D82: 0 | E82: 0 | F82: 0 | G82: 0
A83: Beeches 145 | B83: 33 | C83: 26 | D83: 16 | E83: 20 | F83: 34 | G83: 41
A84: Waterloo 233 | B84: 75 | C84: 28 | D84: 16 | E84: 17 | F84: 67 | G84: 86
A85: Abbey 97 | B85: 39 | C85: 28 | D85: 30 | E85: 27 | F85: 36 | G85: 42
B86: =SUM(B78:B85) -> 403 | C86: =SUM(C78:C85) -> 223 | D86: 112 | E86: 121 | F86: 217 | G86: 271
A87: Long stay 701 | B87: =B79+B80+B83+B84+B85 -> 245 | C87: =C79+C80+C83+C84+C85 -> 131 | D87: =D79+D80+D83+D84+D85 -> 83 | E87: 81 | F87: 176 | G87: 233
A88: 701 | B88: =B87/701 -> 0.3495007133 | C88: =C87/701 -> 0.1868758916 | D88: 0.1184022825 | E88: 0.1155492154 | F88: =F87/701 -> 0.2510699001 | G88: =G87/701 -> 0.332382311
A89: Short stay 611 | B89: =SUM(B78+B81+B82) -> 158 | C89: =SUM(C78+C81+C82) -> 92 | D89: =SUM(D78+D81+D82) -> 29 | E89: 40 | F89: 41 | G89: 38
A90: 611 | B90: =B89/611 -> 0.2585924714 | C90: 0.1505728314 | D90: 0.04746317512 | E90: 0.06546644845 | F90: 0.06710310966 | G90: 0.06219312602
